[Event "Chinese League Division-A 2024"]
[Site "Fuling Chongqing"]
[Date "2024.06.27"]
[Round "2.15"]
[White "Gao, Muziyan"]
[Black "Li, Xueyi"]
[Result "1-0"]
[ECO "D73"]
[WhiteElo "1943"]
[BlackElo "2209"]
[Annotator "RC"]
[PlyCount "80"]
[EventDate "2024.06.28"]
[EventType "team-tourn"]
[EventCountry "CHN"]
[SourceTitle "playchess.com"]
[Source "ChessBase"]
[SourceQuality "1"]
[TimeControl "40/5400+30:1800+30"]

1. Nf3 {[%emt 0:00:05]} d5 {[%emt 0:00:05]} 2. g3 {[%emt 0:00:11]} g6 {[%emt 0:00:05]} 3. Bg2 {[%emt 0:00:20]} Bg7 {[%emt 0:00:06]} 4. d4 {[%emt 0:00:34]} c6 {[%emt 0:00:09]} 5. c4 {[%emt 0:07:17]} Nf6 {[%emt 0:05:26]} 6. O-O {[%emt 0:00:41]} dxc4 {[%emt 0:03:12]} 7. a4 {[%emt 0:06:41]} Bf5 {[%emt 0:06:34]} 8. Na3 {[%emt 0:06:38]} O-O {[%emt 0:07:32]} 9. Nxc4 {[%emt 0:01:37]} Nbd7 {[%emt 0:02:40]} 10. a5 {[%emt 0:07:56]} Rc8 {[%emt 0:04:08]} 11. Qb3 {[%emt 0:06:42]} Be4 {[%emt 0:11:58]} 12. Ncd2 {[%emt 0:29:28]} Bd5 {[%emt 0:02:22]} 13. Qd3 {[%emt 0:00:24]} e5 {[%emt 0:12:01]} 14. e4 {[%emt 0:20:02]} Be6 {[%emt 0:00:11]} 15. Ng5 {[%emt 0:03:11]} Nc5 {[%emt 0:15:28]} 16. Qa3 {[%emt 0:00:17]} Qxd4 {[%emt 0:02:03]} 17. Ndf3 {[%emt 0:00:07]} Qd6 {[%emt 0:02:20]} 18. Nxe6 {[%emt 0:00:40]} fxe6 {[%emt 0:00:14]} 19. Ng5 {[%emt 0:00:05]} h6 {[%emt 0:14:04]} 20. Nxe6 {[%emt 0:01:57]} Qxe6 {[%emt 0:00:03]} 21. Qxc5 {[%emt 0:00:02]} a6 {[%emt 0:00:04]} 22. Bd2 {[%emt 0:01:17]} Nd7 {[%emt 0:01:07]} 23. Qb4 {[%emt 0:01:24]} Rc7 {[%emt 0:02:12]} 24. Rfd1 {[%emt 0:01:09]} Qf7 {[%emt 0:03:35]} 25. Be3 {[%emt 0:00:18]} Re8 {[%emt 0:00:32]} 26. Bf1 {[%emt 0:01:42]} Kh7 {[%emt 0:00:24]} 27. Qd6 {[%emt 0:02:21]} Nf6 {[%emt 0:02:35]} 28. Bc4 {[%emt 0:00:12]} Qe7 {[%emt 0:01:12]} 29. Bb6 {[%emt 0:01:08]} Qxd6 {[%emt 0:00:53]} 30. Rxd6 {[%emt 0:00:02]} Rd7 {[%emt 0:00:16]} 31. Rad1 {[%emt 0:01:00]} Rxd6 {[%emt 0:01:48]} 32. Rxd6 {[%emt 0:00:01]} Re7 {[%emt 0:00:33]} 33. Bd8 {[%emt 0:00:58]} Rd7 {[%emt 0:00:08]} 34. Rxd7 {[%emt 0:00:30]} Nxd7 {[%emt 0:00:05]} 35. Be6 {[%emt 0:00:12]} Nc5 {[%emt 0:00:04]} 36. Bc8 {[%emt 0:00:06]} Bf8 {[%emt 0:00:06]} 37. Kf1 {[%emt 0:01:13]} Kg7 {[%emt 0:00:10]} 38. Ke2 {[%emt 0:00:29]} Kf7 {[%emt 0:00:04]} 39. Bb6 {[%emt 0:00:32]} Na4 {[%emt 0:00:58]} 40. Bc7 {[%emt 0:00:00]} Bb4 {[%emt 0:03:03]} 1-0

[Event "Chinese League Division-A 2024"]
[Site "Fuling Chongqing"]
[Date "2024.06.27"]
[Round "2.16"]
[White "Jiang, Haochen"]
[Black "Xu, Yinglun"]
[Result "1/2-1/2"]
[ECO "B81"]
[WhiteElo "2290"]
[BlackElo "2526"]
[Annotator "TA"]
[PlyCount "94"]
[EventDate "2024.06.28"]
[EventType "team-tourn"]
[EventCountry "CHN"]
[SourceTitle "playchess.com"]
[Source "ChessBase"]
[SourceQuality "1"]
[TimeControl "40/5400+30:1800+30"]

{[%evp 14,94,34,25,31,24,24,23,16,0,0,0,0,0,3,0,12,6,14,0,0,3,0,-9,-8,-7,-7,-6,0,-17,-11,-22,-32,-55,-54,-437,832,-4,-5,-5,-8,-8,-8,-6,-14,-73,-72,-61,-61,-61,-61,-61,-61,-61,-61,-61,-61,-61,-61,-61,-61,-72,-61,-61,-61,-61,-61,-61,-19,-61,0,0,0,0,0,0,0,0,0,0,0,0,0]} 1. e4 {[%emt 0:00:01]} c5 {[%emt 0:00:42]} 2. Nf3 {[%emt 0:00:06]} d6 {[%emt 0:00:31]} 3. d4 {[%emt 0:00:05]} cxd4 {[%emt 0:00:10]} 4. Nxd4 {[%emt 0:00:02]} Nf6 {[%emt 0:00:10]} 5. Nc3 {[%emt 0:00:04]} a6 {[%emt 0:00:49]} 6. h3 {[%emt 0:00:07]} e6 {[%emt 0:02:18]} 7. g4 {[%emt 0:00:12]} h6 {[%emt 0:00:13]} 8. Bg2 {[%emt 0:00:23]} Be7 {[%emt 0:00:14]} 9. Be3 {[%emt 0:05:31]} Nc6 {[%emt 0:01:26]} 10. Nxc6 {[%emt 0:00:38]} bxc6 {[%emt 0:00:07] White has an edge.} 11. e5 {[%emt 0:00:07]} Nd5 {[%emt 0:00:14]} 12. Nxd5 {[%emt 0:00:51]} cxd5 {[%emt 0:04:54]} 13. exd6 {[%emt 0:05:02]} Qxd6 {[%emt 0:12:37]} 14. O-O {[%emt 0:02:21]} Rb8 {[%emt 0:00:52][%cal Od6c7]} 15. b3 {[%emt 0:20:03]} Bb7 {[%emt 0:07:00]} 16. c4 {[%emt 0:06:56]} dxc4 {[%emt 0:03:01]} 17. Bxb7 {[%emt 0:09:56]} Rxb7 {[%emt 0:00:38]} 18. Qf3 {[%emt 0:06:41]} Qd5 {[%emt 0:07:07]} 19. Qxd5 {[%emt 0:01:05]} exd5 {[%emt 0:00:07]} 20. Rfd1 {[%emt 0:00:21]} Bf6 {[%emt 0:05:03]} 21. Rac1 {[%emt 0:04:29]} cxb3 {[%emt 0:00:36]} (21... Bb2 22. Rc2 c3 23. Rxd5 $14) 22. axb3 {[%emt 0:00:19]} (22. Rxd5 $2 b2 (22... bxa2 23. Ra5 $17) 23. Rb1 O-O $19) (22. Rc8+ Ke7 23. Rxh8 bxa2 $19) 22... O-O {[%emt 0:00:50]} 23. Rd3 {[%emt 0:00:35]} d4 24. Rxd4 {[%emt 0:00:30][%mdl 8192] [#]} (24. Bxd4 Rd8 25. Rc4 Rd6 $19) (24. Bd2 $15) 24... Rb4 $4 {[%emt 0:00:06][%mdl 8192]} 25. Rd5 $2 ({Only move:} 25. Rxb4 $18 Rd8 26. Rb7) 25... Rxb3 $11 {[%emt 0:00:59]} 26. Ra5 {[%emt 0:00:49]} Ra8 {[%emt 0:00:08]} 27. Rc6 {[%emt 0:11:36]} Rb1+ {[%emt 0:00:22]} 28. Kg2 {[%emt 0:00:07]} Ra1 {[%emt 0:00:07]} 29. Rd5 {[%emt 0:04:51]} (29. Rac5 $11) 29... a5 $17 {[%emt 0:08:12]} 30. Bxh6 {[%emt 0:02:13]} a4 $1 {[%emt 0:00:16][%cal Oa4a3] [#] White must now prevent ...a3!} 31. Bg5 {[%emt 0:02:36]} Bxg5 {[%emt 0:02:11]} 32. Rxg5 $15 {[%emt 0:00:02][%mdl 4096] Endgame. KRR-KRR} Rb1 {[%emt 0:00:21]} 33. Rgc5 {[%emt 0:09:52]} Rbb8 {[%emt 0:00:17] Wards off Rc8+. Hoping for ...a3.} 34. Rc2 {[%emt 0:00:30]} a3 {[%emt 0:00:13] ...a2 is the strong threat.} 35. Ra2 {[%emt 0:00:04]} Rb3 {[%emt 0:00:07] Wards off Rc3} ({But not} 35... Rb2 36. Rxb2 axb2 37. Rb6 $11) 36. Rc4 {[%emt 0:00:20]} f6 {[%emt 0:01:54]} 37. h4 {[%emt 0:00:57]} Kh7 {[%emt 0:00:35]} 38. f3 {[%emt 0:03:06]} Ra7 {[%emt 0:01:56]} 39. Kg3 {[%emt 0:00:21]} Kg6 {[%emt 0:00:06]} 40. Rc5 {[%emt 0:00:43]} Kf7 {[%emt 0:00:58]} 41. Rac2 {[%emt 0:31:12]} Ke8 {[%emt 0:32:35]} (41... Re3 $15 42. Ra2 Kg6) 42. Rc7 $11 {[%emt 0:00:00] The position is equal.} Rbb7 {[%emt 0:00:00]} 43. Rxb7 {[%emt 0:00:00]} Rxb7 {[%emt 0:00:00]} 44. Rc8+ {[%emt 0:00:00]} Kf7 {[%emt 0:00:00]} 45. Ra8 {[%emt 0:00:00] Prevents Ra7.} Rb3 {[%emt 0:00:00]} 46. h5 {[%emt 0:00:00]} Rc3 {[%emt 0:00:00]} 47. Kf4 {[%emt 0:00:00]} Rb3 {[%emt 0:00:00] Weighted Error Value: White=0.35/Black=0.06 (flawless) .  Loses game:     	White=1     	---        Missed win:     	White=1     	Black=1      Mistake:       	White=1     	Black=1      Inaccurate:     	White=1     	Black=1      OK:         	White=16    	Black=19     Best:        	White=5     	Black=2      Strong:       	---       	Black=1} 1/2-1/2

[Event "Chinese League Division-A 2024"]
[Site "Fuling Chongqing"]
[Date "2024.06.27"]
[Round "2.17"]
[White "Xie, Kaifan"]
[Black "Wang, Zihang"]
[Result "1/2-1/2"]
[ECO "D55"]
[WhiteElo "2376"]
[BlackElo "2028"]
[Annotator "RC"]
[PlyCount "108"]
[EventDate "2024.06.28"]
[EventType "team-tourn"]
[EventCountry "CHN"]
[SourceTitle "playchess.com"]
[Source "ChessBase"]
[SourceQuality "1"]
[TimeControl "40/5400+30:1800+30"]

1. d4 {[%emt 0:00:03]} Nf6 {[%emt 0:00:06]} 2. c4 {[%emt 0:00:11]} e6 {[%emt 0:00:18]} 3. Nc3 {[%emt 0:00:37]} d5 {[%emt 0:01:23]} 4. Bg5 {[%emt 0:01:09]} Be7 {[%emt 0:00:29]} 5. e3 {[%emt 0:01:59]} h6 {[%emt 0:02:13]} 6. Bxf6 {[%emt 0:02:22]} Bxf6 {[%emt 0:00:09]} 7. Nf3 {[%emt 0:00:08]} O-O {[%emt 0:01:42]} 8. Rc1 {[%emt 0:00:15]} c6 {[%emt 0:05:44]} 9. Bd3 {[%emt 0:02:54]} Nd7 {[%emt 0:01:30]} 10. O-O {[%emt 0:02:04]} dxc4 {[%emt 0:02:42]} 11. Bxc4 {[%emt 0:01:31]} e5 {[%emt 0:02:06]} 12. d5 {[%emt 0:02:21]} Nb6 {[%emt 0:17:52]} 13. Qb3 {[%emt 0:02:29]} cxd5 {[%emt 0:23:45]} 14. Nxd5 {[%emt 0:19:44]} Nxd5 {[%emt 0:09:11]} 15. Bxd5 {[%emt 0:02:25]} Qe7 {[%emt 0:01:05]} 16. Rc2 {[%emt 0:17:46]} Rb8 {[%emt 0:13:04]} 17. Rfc1 {[%emt 0:02:52]} Be6 {[%emt 0:05:20]} 18. Bxe6 {[%emt 0:02:59]} Qxe6 {[%emt 0:00:59]} 19. Qxe6 {[%emt 0:00:08]} fxe6 {[%emt 0:00:05]} 20. Nd2 {[%emt 0:11:38]} Rfd8 {[%emt 0:03:24]} 21. Ne4 {[%emt 0:01:28]} Rd7 {[%emt 0:00:22]} 22. Kf1 {[%emt 0:04:04]} Rbd8 {[%emt 0:01:30]} 23. Rc7 {[%emt 0:00:34]} Be7 {[%emt 0:01:06]} 24. Rxd7 {[%emt 0:02:49]} Rxd7 {[%emt 0:00:01]} 25. Rc8+ {[%emt 0:01:00]} Kf7 {[%emt 0:01:14]} 26. Ke2 {[%emt 0:00:14]} Bf8 {[%emt 0:05:35]} 27. Nd2 {[%emt 0:03:48]} Be7 {[%emt 0:00:32]} 28. Nc4 {[%emt 0:03:45]} Kf6 {[%emt 0:00:31]} 29. h4 {[%emt 0:00:38]} h5 {[%emt 0:00:30]} 30. a4 {[%emt 0:05:06]} b6 {[%emt 0:00:30]} 31. Rh8 {[%emt 0:00:43]} g6 {[%emt 0:00:18]} 32. Rh7 {[%emt 0:00:56]} Rc7 {[%emt 0:00:43]} 33. Nd2 {[%emt 0:01:02]} Bd8 {[%emt 0:00:30]} 34. Ne4+ {[%emt 0:01:54]} Kf5 {[%emt 0:00:01]} 35. Nd6+ {[%emt 0:00:09]} Kg4 {[%emt 0:00:18]} 36. Rxc7 {[%emt 0:00:57]} Bxc7 {[%emt 0:00:01]} 37. Nb5 {[%emt 0:01:38]} Bb8 {[%emt 0:00:11]} 38. g3 {[%emt 0:00:21]} e4 {[%emt 0:01:54]} 39. Nd4 {[%emt 0:02:24]} Be5 {[%emt 0:00:27]} 40. Nc6 {[%emt 0:00:00]} Bxb2 {[%emt 0:00:00]} 41. Nxa7 {[%emt 0:00:15]} Ba3 {[%emt 0:09:51]} 42. Nb5 {[%emt 0:03:35]} Bc5 {[%emt 0:00:49]} 43. Na7 {[%emt 0:02:59]} g5 {[%emt 0:04:56]} 44. hxg5 {[%emt 0:00:19]} Kxg5 {[%emt 0:00:04]} 45. Nc6 {[%emt 0:00:13]} Kf5 {[%emt 0:00:53]} 46. a5 {[%emt 0:00:17]} bxa5 {[%emt 0:00:07]} 47. Nxa5 {[%emt 0:00:03]} Be7 {[%emt 0:02:38]} 48. Nb3 {[%emt 0:00:49]} e5 {[%emt 0:01:38]} 49. Nd2 {[%emt 0:00:34]} h4 {[%emt 0:00:56]} 50. gxh4 {[%emt 0:00:12]} Bxh4 {[%emt 0:00:05]} 51. f3 {[%emt 0:00:03]} exf3+ {[%emt 0:00:11]} 52. Nxf3 {[%emt 0:00:04]} Bg5 {[%emt 0:00:21]} 53. e4+ {[%emt 0:00:10]} Kxe4 {[%emt 0:00:06]} 54. Nxe5 {[%emt 0:00:07]} Kxe5 {[%emt 0:00:30]} 1/2-1/2

[Event "Chinese League Division-A 2024"]
[Site "Fuling Chongqing"]
[Date "2024.06.27"]
[Round "2.18"]
[White "Shen, Fuyan"]
[Black "Wu, Yixing"]
[Result "0-1"]
[ECO "A19"]
[WhiteElo "1830"]
[BlackElo "2326"]
[Annotator "RC"]
[PlyCount "126"]
[EventDate "2024.06.28"]
[EventType "team-tourn"]
[EventCountry "CHN"]
[SourceTitle "playchess.com"]
[Source "ChessBase"]
[SourceQuality "1"]
[TimeControl "40/5400+30:1800+30"]

1. c4 {[%emt 0:00:03]} Nf6 {[%emt 0:00:06]} 2. Nc3 {[%emt 0:00:14]} e6 {[%emt 0:00:06]} 3. e4 {[%emt 0:00:22]} c5 {[%emt 0:00:10]} 4. e5 {[%emt 0:00:09]} Ng8 {[%emt 0:00:05]} 5. d4 {[%emt 0:00:09]} Nc6 {[%emt 0:07:02]} 6. d5 {[%emt 0:07:35]} Nxe5 {[%emt 0:00:32]} 7. f4 {[%emt 0:09:06]} Ng6 {[%emt 0:01:35]} 8. Nf3 {[%emt 0:02:04]} Nf6 {[%emt 0:09:44]} 9. Bd3 {[%emt 0:03:54]} exd5 {[%emt 0:06:46]} 10. cxd5 {[%emt 0:02:35]} Bd6 {[%emt 0:05:58]} 11. Nb5 {[%emt 0:22:30]} O-O {[%emt 0:07:11]} 12. O-O {[%emt 0:07:17]} Qb6 {[%emt 0:02:03]} 13. Bc4 {[%emt 0:06:30]} a6 {[%emt 0:03:27]} 14. Nxd6 {[%emt 0:02:25]} Qxd6 {[%emt 0:00:04]} 15. a4 {[%emt 0:00:38]} b6 {[%emt 0:01:42]} 16. f5 {[%emt 0:03:16]} Ne7 {[%emt 0:05:32]} 17. Qd3 {[%emt 0:03:30]} Bb7 {[%emt 0:11:15]} 18. Bg5 {[%emt 0:00:38]} b5 {[%emt 0:04:31]} 19. axb5 {[%emt 0:00:19]} axb5 {[%emt 0:00:03]} 20. Bxb5 {[%emt 0:02:10]} Qxd5 {[%emt 0:00:59]} 21. Qxd5 {[%emt 0:02:00]} Nexd5 {[%emt 0:00:14]} 22. Ne5 {[%emt 0:01:07]} d6 {[%emt 0:03:46]} 23. Nc4 {[%emt 0:05:43]} Ne4 {[%emt 0:00:07]} 24. Bh4 {[%emt 0:00:34]} Nc7 {[%emt 0:00:16]} 25. Bd7 {[%emt 0:00:54]} Ba6 {[%emt 0:03:05]} 26. Rfe1 {[%emt 0:05:32]} Bxc4 {[%emt 0:04:51]} 27. Ra4 {[%emt 0:00:03]} Ra5 28. Rxa5 {[%emt 0:00:31]} Rd8 {[%emt 0:00:37]} 29. Ra8 Rxa8 {[%emt 0:01:00]} 30. Rxe4 {[%emt 0:00:35]} Bd3 {[%emt 0:01:56]} 31. Re1 {[%emt 0:05:29]} h6 {[%emt 0:06:49]} 32. Bg3 {[%emt 0:03:29]} Rd8 {[%emt 0:01:58]} 33. Re7 {[%emt 0:00:53]} Nd5 {[%emt 0:02:01]} 34. Re8+ {[%emt 0:00:01]} Rxe8 {[%emt 0:00:05]} 35. Bxe8 {[%emt 0:00:04]} Nf6 {[%emt 0:00:06]} 36. Bc6 {[%emt 0:00:15]} Be4 {[%emt 0:00:04]} 37. Ba4 {[%emt 0:04:01]} d5 {[%emt 0:00:13]} 38. Bf2 {[%emt 0:01:42]} c4 {[%emt 0:01:32]} 39. Bd4 {[%emt 0:00:23]} Bxf5 {[%emt 0:00:33]} 40. Bc6 {[%emt 0:01:06]} Be4 {[%emt 0:01:39]} 41. Kf2 {[%emt 0:30:19]} Kf8 {[%emt 0:30:24]} 42. Bc5+ {[%emt 0:00:00]} Kg8 {[%emt 0:00:00]} 43. Bd4 {[%emt 0:00:00]} Ng4+ {[%emt 0:00:00]} 44. Kg1 {[%emt 0:00:00]} f5 {[%emt 0:00:00]} 45. g3 {[%emt 0:00:00]} Kf7 {[%emt 0:00:00]} 46. h4 {[%emt 0:00:00]} g6 {[%emt 0:00:00]} 47. Bd7 {[%emt 0:00:00]} Ke7 {[%emt 0:00:00]} 48. Bc8 {[%emt 0:00:00]} Kd6 {[%emt 0:00:00]} 49. Kf1 {[%emt 0:00:00]} g5 {[%emt 0:00:00]} 50. hxg5 {[%emt 0:00:00]} hxg5 {[%emt 0:00:00]} 51. Ke2 {[%emt 0:00:00]} Ne5 {[%emt 0:00:00]} 52. Be3 {[%emt 0:00:00]} Bd3+ {[%emt 0:00:00]} 53. Ke1 {[%emt 0:00:00]} Nf3+ {[%emt 0:00:00]} 54. Kf2 {[%emt 0:00:00]} g4 {[%emt 0:00:00]} 55. Bh6 {[%emt 0:00:00]} d4 {[%emt 0:03:23]} 56. Bg7 {[%emt 0:00:00]} Kc5 {[%emt 0:01:40]} 57. Bb7 {[%emt 0:01:39]} Be4 {[%emt 0:00:12]} 58. Ba6 {[%emt 0:00:23]} Kb4 {[%emt 0:00:14]} 59. Ke2 {[%emt 0:01:09]} Kb3 {[%emt 0:01:13]} 60. Kd1 {[%emt 0:00:33]} f4 {[%emt 0:00:41]} 61. Ke2 {[%emt 0:01:23]} d3+ {[%emt 0:00:24]} 62. Kf1 {[%emt 0:01:07]} d2 {[%emt 0:00:08]} 63. Ke2 {[%emt 0:00:12]} Bd3+ {[%emt 0:00:06]} 0-1

[Event "Chinese League Division-A 2024"]
[Site "Fuling Chongqing"]
[Date "2024.06.27"]
[Round "2.19"]
[White "Wang, Qinxuanyi"]
[Black "Zhao, Yunqing"]
[Result "1-0"]
[ECO "E12"]
[WhiteElo "2149"]
[BlackElo "1986"]
[Annotator "RC"]
[PlyCount "79"]
[EventDate "2024.06.28"]
[EventType "team-tourn"]
[EventCountry "CHN"]
[SourceTitle "playchess.com"]
[Source "ChessBase"]
[SourceQuality "1"]
[TimeControl "40/5400+30:1800+30"]

1. d4 {[%emt 0:00:02]} Nf6 {[%emt 0:00:05]} 2. c4 {[%emt 0:00:05]} e6 {[%emt 0:00:03]} 3. Nf3 {[%emt 0:00:06]} b6 {[%emt 0:00:05]} 4. a3 {[%emt 0:00:05]} Bb7 {[%emt 0:00:06]} 5. Nc3 {[%emt 0:00:05]} Ne4 {[%emt 0:00:08]} 6. Nxe4 {[%emt 0:00:05]} Bxe4 {[%emt 0:00:05]} 7. Nd2 {[%emt 0:00:03]} Bb7 {[%emt 0:00:06]} 8. e4 {[%emt 0:00:06]} g6 {[%emt 0:00:10]} 9. Bd3 {[%emt 0:00:06]} Bg7 {[%emt 0:00:06]} 10. Nf3 {[%emt 0:00:07]} O-O {[%emt 0:00:11]} 11. O-O {[%emt 0:00:07]} d6 {[%emt 0:00:05]} 12. Bg5 {[%emt 0:00:38]} Qd7 {[%emt 0:00:33]} 13. Qd2 {[%emt 0:02:45]} Nc6 {[%emt 0:01:53]} 14. Bh6 {[%emt 0:03:01]} Ne7 {[%emt 0:13:48]} 15. b4 {[%emt 0:05:55]} c5 {[%emt 0:05:06]} 16. Bxg7 {[%emt 0:05:32]} Kxg7 {[%emt 0:00:07]} 17. bxc5 {[%emt 0:00:21]} bxc5 {[%emt 0:01:47]} 18. Rfd1 {[%emt 0:10:11]} Qc7 {[%emt 0:17:48]} 19. h4 {[%emt 0:03:57]} h5 {[%emt 0:09:03]} 20. Rab1 {[%emt 0:11:00]} Rab8 {[%emt 0:05:20]} 21. d5 {[%emt 0:08:53]} e5 {[%emt 0:03:24]} 22. Ng5 {[%emt 0:02:05]} Bc8 {[%emt 0:18:29]} 23. Rxb8 {[%emt 0:01:41]} Qxb8 {[%emt 0:00:05]} 24. Qa5 {[%emt 0:01:03]} a6 {[%emt 0:04:21]} 25. Rb1 {[%emt 0:03:45]} Qa7 {[%emt 0:00:23]} 26. Bc2 {[%emt 0:04:02]} Qd7 {[%emt 0:04:56]} 27. Ba4 {[%emt 0:00:20]} Qd8 {[%emt 0:00:55]} 28. Qc3 {[%emt 0:05:35]} Qc7 {[%emt 0:04:49]} 29. f4 {[%emt 0:02:20]} f6 {[%emt 0:05:23]} 30. fxe5 {[%emt 0:02:34]} fxe5 {[%emt 0:01:02]} 31. Ne6+ {[%emt 0:04:28]} Bxe6 {[%emt 0:00:06]} 32. dxe6 {[%emt 0:00:02]} Rf4 {[%emt 0:02:18]} 33. Qd3 {[%emt 0:02:20]} Nc6 {[%emt 0:03:24]} 34. Bxc6 {[%emt 0:03:53]} Qxc6 {[%emt 0:00:02]} 35. Qd5 {[%emt 0:00:09]} Qxd5 {[%emt 0:01:16]} 36. exd5 {[%emt 0:00:05]} Rxc4 {[%emt 0:00:28]} 37. Rb8 {[%emt 0:00:05]} Kf6 {[%emt 0:00:33]} 38. Rb7 {[%emt 0:00:04]} g5 {[%emt 0:00:29]} 39. hxg5+ {[%emt 0:00:34]} Kg6 {[%emt 0:00:06]} 40. e7 {[%emt 0:00:00]} 1-0

[Event "Chinese League Division-A 2024"]
[Site "Fuling Chongqing"]
[Date "2024.06.27"]
[Round "2.20"]
[White "Du, Yuxin"]
[Black "Liu, Manli"]
[Result "1/2-1/2"]
[ECO "C02"]
[WhiteElo "1960"]
[BlackElo "2056"]
[Annotator "NA RC"]
[PlyCount "72"]
[EventDate "2024.06.28"]
[EventType "team-tourn"]
[EventCountry "CHN"]
[SourceTitle "playchess.com"]
[Source "ChessBase"]
[SourceQuality "1"]
[TimeControl "40/5400+30:1800+30"]

1. e4 {[%emt 0:00:03]} e6 {[%emt 0:00:08]} 2. d4 {[%emt 0:00:22]} d5 {[%emt 0:00:10]} 3. e5 {[%emt 0:00:48]} c5 {[%emt 0:00:11]} 4. c3 {[%emt 0:00:06]} Nc6 {[%emt 0:00:05]} 5. Nf3 {[%emt 0:00:07]} Qb6 {[%emt 0:00:06]} 6. a3 {[%emt 0:01:24]} Nh6 {[%emt 0:00:08]} 7. Bd3 {[%emt 0:01:21]} cxd4 {[%emt 0:00:09]} 8. cxd4 {[%emt 0:00:05]} Nf5 {[%emt 0:00:07]} 9. Bxf5 {[%emt 0:00:09]} exf5 {[%emt 0:00:09]} 10. O-O {[%emt 0:03:19]} Be6 {[%emt 0:00:14]} 11. Nc3 {[%emt 0:00:45]} h6 {[%emt 0:00:08]} 12. b4 {[%emt 0:00:44]} Be7 {[%emt 0:02:23]} 13. Qd3 {[%emt 0:03:26]} g5 {[%emt 0:01:21]} 14. Na4 {[%emt 0:07:17]} Qa6 {[%emt 0:02:04]} 15. Qxa6 {[%emt 0:06:34]} bxa6 {[%emt 0:00:06]} 16. Bb2 {[%emt 0:06:17]} O-O {[%emt 0:04:27]} 17. Rfc1 {[%emt 0:09:05]} Rfc8 {[%emt 0:05:17]} 18. Nc5 {[%emt 0:07:54]} Rab8 {[%emt 0:07:26]} 19. Nxa6 {[%emt 0:27:01]} Rb6 {[%emt 0:00:10]} 20. Nc5 {[%emt 0:00:12]} a5 {[%emt 0:00:22]} 21. Na4 {[%emt 0:11:12]} Rbb8 {[%emt 0:00:26]} 22. bxa5 {[%emt 0:01:11]} Nxa5 {[%emt 0:00:07]} 23. Rxc8+ {[%emt 0:01:04]} Rxc8 {[%emt 0:06:37]} 24. Bc3 {[%emt 0:06:39]} Rc4 {[%emt 0:11:28]} 25. Bxa5 {[%emt 0:01:06]} Rxa4 {[%emt 0:00:07]} 26. Bb6 {[%emt 0:00:27]} Rxa3 {[%emt 0:01:58]} 27. Rxa3 {[%emt 0:00:07]} Bxa3 {[%emt 0:00:05]} 28. Bc5 {[%emt 0:02:12]} Bb2 {[%emt 0:00:24]} 29. h4 {[%emt 0:01:17]} Bc1 {[%emt 0:03:20]} 30. hxg5 {[%emt 0:00:22]} hxg5 {[%emt 0:00:00]} 31. Be7 {[%emt 0:01:00]} g4 {[%emt 0:00:15]} 32. Ne1 {[%emt 0:01:05]} Bd2 {[%emt 0:05:25]} 33. Nd3 {[%emt 0:00:56]} Kg7 {[%emt 0:06:46]} 34. g3 {[%emt 0:00:58]} Kg6 {[%emt 0:00:34]} 35. Kg2 {[%emt 0:00:42]} f4 {[%emt 0:01:25]} 36. Nxf4+ {[%emt 0:00:17]} Bxf4 {[%emt 0:00:12]} 1/2-1/2